{"text_format":"1","workbook":"xlsx","n_sheets":1,"sheets":["Лист1"],"not_rendered":{"charts":0,"images":0,"macros":1,"external_links":1,"defined_names":0,"comments":0,"pivot_tables":0},"unopened":[],"bounds":{"document_bytes":16777216,"sheet_cells":100000,"rows_first":2000,"rows_last":500,"rows_between":2000,"halvings":0,"cell_chars":16384,"cell_head_chars":4096},"cells_cut":0,"cells_raw":0,"read":"whole","date_system":"1900"}

{"sheet":"Лист1","index":0,"n_rows":16,"n_cols":32,"rows_kept":16,"cut":false,"hidden":false,"merged":[]}
[]
[null,"После подтяжки отсортировать по номеру всп!!!",null,null,null,null,null,null,null,null,"переформат","да"]
[null,"Проверку кол-ва КМ делаем из: 1).1.25; 2).произвольный отчет; 3).рейтинги + обратные проверки",null,null,null,null,null,null,null,null,"1-ый месяц","нет"]
[]
[null,null,null,null,null,null,null,null,null,null,null,null,null,null,null,null,null,"с 25 по 24 число, согласованный отчет"]
["Рейтинг, портал","Рейтинг, портал","КЗ, обработка","КЗ, обработка",1.25,"КЗ","КЗ, обработка",null,"Конвертер",1.25,"Справочник, Света Киселева","Запрос","Справочник, портал","Табель","Отчет2","Отчет управляющей кампании",1.25,"реестр","формула","формула","Ручные данные+проверка ИБСО","Ручные данные+проверка ОПИКИс","норматив","Саша Т.","норматив"]
[null,"1C","1Е","1F",null,null,"2d6",null,"2d5","2d4",null,null,"2d9"]
["Код КМ","ФИО","Табельный номер","Должностной оклад","Дата создания подразделения","Фактически отработанное время","ВСП","ВСП справ НСИ","Управление","Адрес","Переформат/1 месяц в должности","ПИФ (да/нет)","Нормативный коэффициент премирования","Обучение","Итого прирост","ПИФ","Тарифный план","ИСЖ/НСЖ","месяцев действия точки МВС","Зона","Потреб.кредиты","Одобренные заявки на ЖК/ПК под залог недвижимости","Кнорм","ДСЖ","Стоимость 1 УП МП"]
["4290420026401","Павлинова Кристина Евгеньевна","4201062076",23500,{"$f":"VLOOKUP([1]!Таблица1[[#This Row],[ФИО]],'[1]1.25'!A:I,5,FALSE)","v":"2014-07-01"},120,"9042/0026",{"$f":"CONCATENATE(\"042_9042_0\",Z9)","v":"042_9042_026"},"1).Городское Управление",{"$f":"VLOOKUP([1]!Таблица1[[#This Row],[ФИО]],'[1]1.25'!A:I,4,FALSE)","v":"г н новгород пр ленина д29"},null,"да",{"$f":"[1]!Таблица1[[#This Row],[Кнорм]]","v":1.5},44,{"$f":"VLOOKUP((VALUE([1]!Таблица1[[#This Row],[Код КМ]])),[1]отчет2!I:J,2,FALSE)/1000000","v":-4.4658559999999996},{"$f":"IFERROR(VLOOKUP([1]!Таблица1[[#This Row],[ФИО]],[1]ПИФ!L:N,3,FALSE),0)/1000","v":0},{"$f":"IFERROR(VLOOKUP(VALUE([1]!Таблица1[[#This Row],[Код КМ]]),[1]ТП!D:F,3,FALSE),0)","v":0},{"$f":"IFERROR(VLOOKUP([1]!Таблица1[[#This Row],[ФИО]],[1]исж!D:E,2,FALSE),0)/1000","v":0},{"$f":"IF(ROUNDUP((TODAY()-[1]!Таблица1[Дата создания подразделения])/30,0)>5,\"6 и более\",ROUNDUP((TODAY()-[1]!Таблица1[Дата создания подразделения])/30,0))","v":{"$error":"#REF!"}},{"$f":"IF([1]!Таблица1[[#This Row],[Управление]]=\"1).Городское Управление\",1,2)","v":1},null,null,{"$f":"VLOOKUP([1]!Таблица1[[#This Row],[ВСП]],[1]Кнорм!A:M,13,FALSE)","v":1.5},{"$f":"IFERROR(VLOOKUP([1]!Таблица1[[#This Row],[ФИО]],[1]дсж!E:G,3,FALSE),0)","v":0},{"$f":"VLOOKUP([1]!Таблица1[[#This Row],[ВСП]],[1]Кнорм!A:H,8,FALSE)","v":1},{"$f":"VALUE(RIGHT([1]!Таблица1[[#This Row],[ВСП]],4))","v":26},74,{"$f":"[1]!Таблица1[[#This Row],[ПИФ]]","v":0},{"$f":"[1]!Таблица1[[#This Row],[ФИО]]&[1]!Таблица1[[#This Row],[ВСП]]","v":"Павлинова Кристина Евгеньевна9042/0026"},null,null,{"$f":"CONCATENATE(LEFT(\"42000000\",10-LEN([1]!Таблица1[[#This Row],[Табельный номер]])),[1]!Таблица1[[#This Row],[Табельный номер]])","v":"4201062076"}]
["4290420026402","Солдатова Инна Сергеевна","4200320073",28000,{"$f":"VLOOKUP([1]!Таблица1[[#This Row],[ФИО]],'[1]1.25'!A:I,5,FALSE)","v":"2013-07-01"},40,"9042/0026","042_9042_026","1).Городское Управление",{"$f":"VLOOKUP([1]!Таблица1[[#This Row],[ФИО]],'[1]1.25'!A:I,4,FALSE)","v":"Нижний Новгород ул.Ленина 29"},null,"да",{"$f":"[1]!Таблица1[[#This Row],[Кнорм]]","v":1.5},{"$f":"4","v":4},{"$f":"VLOOKUP((VALUE([1]!Таблица1[[#This Row],[Код КМ]])),[1]отчет2!I:J,2,FALSE)/1000000","v":-4.8921910000000004},{"$f":"IFERROR(VLOOKUP([1]!Таблица1[[#This Row],[ФИО]],[1]ПИФ!L:N,3,FALSE),0)/1000","v":0},{"$f":"IFERROR(VLOOKUP(VALUE([1]!Таблица1[[#This Row],[Код КМ]]),[1]ТП!D:F,3,FALSE),0)","v":2},{"$f":"IFERROR(VLOOKUP([1]!Таблица1[[#This Row],[ФИО]],[1]исж!D:E,2,FALSE),0)/1000","v":0},{"$f":"IF(ROUNDUP((TODAY()-[1]!Таблица1[Дата создания подразделения])/30,0)>5,\"6 и более\",ROUNDUP((TODAY()-[1]!Таблица1[Дата создания подразделения])/30,0))","v":{"$error":"#REF!"}},{"$f":"IF([1]!Таблица1[[#This Row],[Управление]]=\"1).Городское Управление\",1,2)","v":1},null,null,{"$f":"VLOOKUP([1]!Таблица1[[#This Row],[ВСП]],[1]Кнорм!A:M,13,FALSE)","v":1.5},{"$f":"IFERROR(VLOOKUP([1]!Таблица1[[#This Row],[ФИО]],[1]дсж!E:G,3,FALSE),0)","v":0},{"$f":"VLOOKUP([1]!Таблица1[[#This Row],[ВСП]],[1]Кнорм!A:H,8,FALSE)","v":1},{"$f":"VALUE(RIGHT([1]!Таблица1[[#This Row],[ВСП]],4))","v":26},130,{"$f":"[1]!Таблица1[[#This Row],[ПИФ]]","v":0},{"$f":"[1]!Таблица1[[#This Row],[ФИО]]&[1]!Таблица1[[#This Row],[ВСП]]","v":"Солдатова Инна Сергеевна9042/0026"},null,null,{"$f":"CONCATENATE(LEFT(\"42000000\",10-LEN([1]!Таблица1[[#This Row],[Табельный номер]])),[1]!Таблица1[[#This Row],[Табельный номер]])","v":"4200320073"}]
["4290420029402","Маркина Евгения Владимировна","4200821605",24000,{"$f":"VLOOKUP([1]!Таблица1[[#This Row],[ФИО]],'[1]1.25'!A:I,5,FALSE)","v":"2013-12-31"},120,"9042/0029","042_9042_029","1).Городское Управление",{"$f":"VLOOKUP([1]!Таблица1[[#This Row],[ФИО]],'[1]1.25'!A:I,4,FALSE)","v":"Нижний Новгород, ул. Плотникова, 5"},null,"да",{"$f":"[1]!Таблица1[[#This Row],[Кнорм]]","v":1.5},44,{"$f":"VLOOKUP((VALUE([1]!Таблица1[[#This Row],[Код КМ]])),[1]отчет2!I:J,2,FALSE)/1000000","v":7.3367610000000001},{"$f":"IFERROR(VLOOKUP([1]!Таблица1[[#This Row],[ФИО]],[1]ПИФ!L:N,3,FALSE),0)/1000","v":200},{"$f":"IFERROR(VLOOKUP(VALUE([1]!Таблица1[[#This Row],[Код КМ]]),[1]ТП!D:F,3,FALSE),0)","v":0},{"$f":"IFERROR(VLOOKUP([1]!Таблица1[[#This Row],[ФИО]],[1]исж!D:E,2,FALSE),0)/1000","v":0},{"$f":"IF(ROUNDUP((TODAY()-[1]!Таблица1[Дата создания подразделения])/30,0)>5,\"6 и более\",ROUNDUP((TODAY()-[1]!Таблица1[Дата создания подразделения])/30,0))","v":{"$error":"#REF!"}},{"$f":"IF([1]!Таблица1[[#This Row],[Управление]]=\"1).Городское Управление\",1,2)","v":1},null,null,{"$f":"VLOOKUP([1]!Таблица1[[#This Row],[ВСП]],[1]Кнорм!A:M,13,FALSE)","v":1.5},{"$f":"IFERROR(VLOOKUP([1]!Таблица1[[#This Row],[ФИО]],[1]дсж!E:G,3,FALSE),0)","v":0},{"$f":"VLOOKUP([1]!Таблица1[[#This Row],[ВСП]],[1]Кнорм!A:H,8,FALSE)","v":1},{"$f":"VALUE(RIGHT([1]!Таблица1[[#This Row],[ВСП]],4))","v":29},0,{"$f":"[1]!Таблица1[[#This Row],[ПИФ]]","v":200},{"$f":"[1]!Таблица1[[#This Row],[ФИО]]&[1]!Таблица1[[#This Row],[ВСП]]","v":"Маркина Евгения Владимировна9042/0029"},null,null,{"$f":"CONCATENATE(LEFT(\"42000000\",10-LEN([1]!Таблица1[[#This Row],[Табельный номер]])),[1]!Таблица1[[#This Row],[Табельный номер]])","v":"4200821605"}]
["4290420030401","Кочнева Елена Вячеславовна","4201094591",23000,{"$f":"VLOOKUP([1]!Таблица1[[#This Row],[ФИО]],'[1]1.25'!A:I,5,FALSE)","v":"2011-07-01"},120,"9042/0030","042_9042_030","1).Городское Управление",{"$f":"VLOOKUP([1]!Таблица1[[#This Row],[ФИО]],'[1]1.25'!A:I,4,FALSE)","v":"Н.Новгород, пр.Ленина 53"},null,"да",{"$f":"[1]!Таблица1[[#This Row],[Кнорм]]","v":1.5},12,{"$f":"VLOOKUP((VALUE([1]!Таблица1[[#This Row],[Код КМ]])),[1]отчет2!I:J,2,FALSE)/1000000","v":8.1332710000000006},{"$f":"IFERROR(VLOOKUP([1]!Таблица1[[#This Row],[ФИО]],[1]ПИФ!L:N,3,FALSE),0)/1000","v":0},{"$f":"IFERROR(VLOOKUP(VALUE([1]!Таблица1[[#This Row],[Код КМ]]),[1]ТП!D:F,3,FALSE),0)","v":0},{"$f":"IFERROR(VLOOKUP([1]!Таблица1[[#This Row],[ФИО]],[1]исж!D:E,2,FALSE),0)/1000","v":0},{"$f":"IF(ROUNDUP((TODAY()-[1]!Таблица1[Дата создания подразделения])/30,0)>5,\"6 и более\",ROUNDUP((TODAY()-[1]!Таблица1[Дата создания подразделения])/30,0))","v":{"$error":"#REF!"}},{"$f":"IF([1]!Таблица1[[#This Row],[Управление]]=\"1).Городское Управление\",1,2)","v":1},null,null,{"$f":"VLOOKUP([1]!Таблица1[[#This Row],[ВСП]],[1]Кнорм!A:M,13,FALSE)","v":1.5},{"$f":"IFERROR(VLOOKUP([1]!Таблица1[[#This Row],[ФИО]],[1]дсж!E:G,3,FALSE),0)","v":0},{"$f":"VLOOKUP([1]!Таблица1[[#This Row],[ВСП]],[1]Кнорм!A:H,8,FALSE)","v":1},{"$f":"VALUE(RIGHT([1]!Таблица1[[#This Row],[ВСП]],4))","v":30},0,{"$f":"[1]!Таблица1[[#This Row],[ПИФ]]","v":0},{"$f":"[1]!Таблица1[[#This Row],[ФИО]]&[1]!Таблица1[[#This Row],[ВСП]]","v":"Кочнева Елена Вячеславовна9042/0030"},null,null,{"$f":"CONCATENATE(LEFT(\"42000000\",10-LEN([1]!Таблица1[[#This Row],[Табельный номер]])),[1]!Таблица1[[#This Row],[Табельный номер]])","v":"4201094591"}]
["4290420030402","Соломенова Анастасия Геннадьевна","4201081379",26000,{"$f":"VLOOKUP([1]!Таблица1[[#This Row],[ФИО]],'[1]1.25'!A:I,5,FALSE)","v":"2011-07-01"},72,"9042/0030","042_9042_030","1).Городское Управление",{"$f":"VLOOKUP([1]!Таблица1[[#This Row],[ФИО]],'[1]1.25'!A:I,4,FALSE)","v":"Н.Новгород, пр.Ленина 53"},null,"да",{"$f":"[1]!Таблица1[[#This Row],[Кнорм]]","v":1.5},36,{"$f":"VLOOKUP((VALUE([1]!Таблица1[[#This Row],[Код КМ]])),[1]отчет2!I:J,2,FALSE)/1000000","v":0.60919999999999996},{"$f":"IFERROR(VLOOKUP([1]!Таблица1[[#This Row],[ФИО]],[1]ПИФ!L:N,3,FALSE),0)/1000","v":0},{"$f":"IFERROR(VLOOKUP(VALUE([1]!Таблица1[[#This Row],[Код КМ]]),[1]ТП!D:F,3,FALSE),0)","v":3},{"$f":"IFERROR(VLOOKUP([1]!Таблица1[[#This Row],[ФИО]],[1]исж!D:E,2,FALSE),0)/1000","v":0},{"$f":"IF(ROUNDUP((TODAY()-[1]!Таблица1[Дата создания подразделения])/30,0)>5,\"6 и более\",ROUNDUP((TODAY()-[1]!Таблица1[Дата создания подразделения])/30,0))","v":{"$error":"#REF!"}},{"$f":"IF([1]!Таблица1[[#This Row],[Управление]]=\"1).Городское Управление\",1,2)","v":1},null,null,{"$f":"VLOOKUP([1]!Таблица1[[#This Row],[ВСП]],[1]Кнорм!A:M,13,FALSE)","v":1.5},{"$f":"IFERROR(VLOOKUP([1]!Таблица1[[#This Row],[ФИО]],[1]дсж!E:G,3,FALSE),0)","v":0},{"$f":"VLOOKUP([1]!Таблица1[[#This Row],[ВСП]],[1]Кнорм!A:H,8,FALSE)","v":1},{"$f":"VALUE(RIGHT([1]!Таблица1[[#This Row],[ВСП]],4))","v":30},0,{"$f":"[1]!Таблица1[[#This Row],[ПИФ]]","v":0},{"$f":"[1]!Таблица1[[#This Row],[ФИО]]&[1]!Таблица1[[#This Row],[ВСП]]","v":"Соломенова Анастасия Геннадьевна9042/0030"},null,null,{"$f":"CONCATENATE(LEFT(\"42000000\",10-LEN([1]!Таблица1[[#This Row],[Табельный номер]])),[1]!Таблица1[[#This Row],[Табельный номер]])","v":"4201081379"}]
["4290420031401","Тактаева Елена Сергеевна","4200508655",28000,{"$f":"VLOOKUP([1]!Таблица1[[#This Row],[ФИО]],'[1]1.25'!A:I,5,FALSE)","v":"2013-07-01"},120,"9042/0031","042_9042_031","1).Городское Управление",{"$f":"VLOOKUP([1]!Таблица1[[#This Row],[ФИО]],'[1]1.25'!A:I,4,FALSE)","v":"г.Нижний Новгород, ул.Веденяпина,д.21"},null,"да",{"$f":"[1]!Таблица1[[#This Row],[Кнорм]]","v":1.5},{"$f":"4","v":4},{"$f":"VLOOKUP((VALUE([1]!Таблица1[[#This Row],[Код КМ]])),[1]отчет2!I:J,2,FALSE)/1000000","v":18.145562999999999},{"$f":"IFERROR(VLOOKUP([1]!Таблица1[[#This Row],[ФИО]],[1]ПИФ!L:N,3,FALSE),0)/1000","v":0},{"$f":"IFERROR(VLOOKUP(VALUE([1]!Таблица1[[#This Row],[Код КМ]]),[1]ТП!D:F,3,FALSE),0)","v":3},{"$f":"IFERROR(VLOOKUP([1]!Таблица1[[#This Row],[ФИО]],[1]исж!D:E,2,FALSE),0)/1000","v":0},{"$f":"IF(ROUNDUP((TODAY()-[1]!Таблица1[Дата создания подразделения])/30,0)>5,\"6 и более\",ROUNDUP((TODAY()-[1]!Таблица1[Дата создания подразделения])/30,0))","v":{"$error":"#REF!"}},{"$f":"IF([1]!Таблица1[[#This Row],[Управление]]=\"1).Городское Управление\",1,2)","v":1},null,null,{"$f":"VLOOKUP([1]!Таблица1[[#This Row],[ВСП]],[1]Кнорм!A:M,13,FALSE)","v":1.5},{"$f":"IFERROR(VLOOKUP([1]!Таблица1[[#This Row],[ФИО]],[1]дсж!E:G,3,FALSE),0)","v":3010.94},{"$f":"VLOOKUP([1]!Таблица1[[#This Row],[ВСП]],[1]Кнорм!A:H,8,FALSE)","v":1},{"$f":"VALUE(RIGHT([1]!Таблица1[[#This Row],[ВСП]],4))","v":31},235,{"$f":"[1]!Таблица1[[#This Row],[ПИФ]]","v":0},{"$f":"[1]!Таблица1[[#This Row],[ФИО]]&[1]!Таблица1[[#This Row],[ВСП]]","v":"Тактаева Елена Сергеевна9042/0031"},null,null,{"$f":"CONCATENATE(LEFT(\"42000000\",10-LEN([1]!Таблица1[[#This Row],[Табельный номер]])),[1]!Таблица1[[#This Row],[Табельный номер]])","v":"4200508655"}]
["4290420032402","Лаврентьева Елена Станиславовна","4200850809",28100,{"$f":"VLOOKUP([1]!Таблица1[[#This Row],[ФИО]],'[1]1.25'!A:I,5,FALSE)","v":"2013-01-01"},120,"9042/0032","042_9042_032","1).Городское Управление",{"$f":"VLOOKUP([1]!Таблица1[[#This Row],[ФИО]],'[1]1.25'!A:I,4,FALSE)","v":"Нижний Новгород пр октября д 3"},null,"да",{"$f":"[1]!Таблица1[[#This Row],[Кнорм]]","v":1.5},44,{"$f":"VLOOKUP((VALUE([1]!Таблица1[[#This Row],[Код КМ]])),[1]отчет2!I:J,2,FALSE)/1000000","v":10.537094},{"$f":"IFERROR(VLOOKUP([1]!Таблица1[[#This Row],[ФИО]],[1]ПИФ!L:N,3,FALSE),0)/1000","v":10},{"$f":"IFERROR(VLOOKUP(VALUE([1]!Таблица1[[#This Row],[Код КМ]]),[1]ТП!D:F,3,FALSE),0)","v":2},{"$f":"IFERROR(VLOOKUP([1]!Таблица1[[#This Row],[ФИО]],[1]исж!D:E,2,FALSE),0)/1000","v":0},{"$f":"IF(ROUNDUP((TODAY()-[1]!Таблица1[Дата создания подразделения])/30,0)>5,\"6 и более\",ROUNDUP((TODAY()-[1]!Таблица1[Дата создания подразделения])/30,0))","v":{"$error":"#REF!"}},{"$f":"IF([1]!Таблица1[[#This Row],[Управление]]=\"1).Городское Управление\",1,2)","v":1},null,1,{"$f":"VLOOKUP([1]!Таблица1[[#This Row],[ВСП]],[1]Кнорм!A:M,13,FALSE)","v":1.5},{"$f":"IFERROR(VLOOKUP([1]!Таблица1[[#This Row],[ФИО]],[1]дсж!E:G,3,FALSE),0)","v":0},{"$f":"VLOOKUP([1]!Таблица1[[#This Row],[ВСП]],[1]Кнорм!A:H,8,FALSE)","v":1},{"$f":"VALUE(RIGHT([1]!Таблица1[[#This Row],[ВСП]],4))","v":32},30,{"$f":"[1]!Таблица1[[#This Row],[ПИФ]]","v":10},{"$f":"[1]!Таблица1[[#This Row],[ФИО]]&[1]!Таблица1[[#This Row],[ВСП]]","v":"Лаврентьева Елена Станиславовна9042/0032"},null,null,{"$f":"CONCATENATE(LEFT(\"42000000\",10-LEN([1]!Таблица1[[#This Row],[Табельный номер]])),[1]!Таблица1[[#This Row],[Табельный номер]])","v":"4200850809"}]
["4290420032401","Юнгина Екатерина Олеговна","4201117309",23000,{"$f":"VLOOKUP([1]!Таблица1[[#This Row],[ФИО]],'[1]1.25'!A:I,5,FALSE)","v":"2012-01-01"},39,"9042/0032","042_9042_032","1).Городское Управление",{"$f":"VLOOKUP([1]!Таблица1[[#This Row],[ФИО]],'[1]1.25'!A:I,4,FALSE)","v":"Нижний Новгород пр октября д 3"},null,"да",{"$f":"[1]!Таблица1[[#This Row],[Кнорм]]","v":1.5},36,{"$f":"VLOOKUP((VALUE([1]!Таблица1[[#This Row],[Код КМ]])),[1]отчет2!I:J,2,FALSE)/1000000","v":-14.619249999999999},{"$f":"IFERROR(VLOOKUP([1]!Таблица1[[#This Row],[ФИО]],[1]ПИФ!L:N,3,FALSE),0)/1000","v":0},{"$f":"IFERROR(VLOOKUP(VALUE([1]!Таблица1[[#This Row],[Код КМ]]),[1]ТП!D:F,3,FALSE),0)","v":0},{"$f":"IFERROR(VLOOKUP([1]!Таблица1[[#This Row],[ФИО]],[1]исж!D:E,2,FALSE),0)/1000","v":0},{"$f":"IF(ROUNDUP((TODAY()-[1]!Таблица1[Дата создания подразделения])/30,0)>5,\"6 и более\",ROUNDUP((TODAY()-[1]!Таблица1[Дата создания подразделения])/30,0))","v":{"$error":"#REF!"}},{"$f":"IF([1]!Таблица1[[#This Row],[Управление]]=\"1).Городское Управление\",1,2)","v":1},null,null,{"$f":"VLOOKUP([1]!Таблица1[[#This Row],[ВСП]],[1]Кнорм!A:M,13,FALSE)","v":1.5},{"$f":"IFERROR(VLOOKUP([1]!Таблица1[[#This Row],[ФИО]],[1]дсж!E:G,3,FALSE),0)","v":0},{"$f":"VLOOKUP([1]!Таблица1[[#This Row],[ВСП]],[1]Кнорм!A:H,8,FALSE)","v":1},{"$f":"VALUE(RIGHT([1]!Таблица1[[#This Row],[ВСП]],4))","v":32},0,{"$f":"[1]!Таблица1[[#This Row],[ПИФ]]","v":0},{"$f":"[1]!Таблица1[[#This Row],[ФИО]]&[1]!Таблица1[[#This Row],[ВСП]]","v":"Юнгина Екатерина Олеговна9042/0032"},null,null,{"$f":"CONCATENATE(LEFT(\"42000000\",10-LEN([1]!Таблица1[[#This Row],[Табельный номер]])),[1]!Таблица1[[#This Row],[Табельный номер]])","v":"4201117309"}]